[Event "FIDE World Junior U20-ch Girls 2025"]
[Site "Petrovac"]
[Date "2025.02.25"]
[Round "1.31"]
[White "Yakimova, Mariya"]
[Black "Nguyen Thien Ngan"]
[Result "1-0"]
[Annotator "ChessBase"]
[ECO "D31"]
[WhiteElo "2201"]
[BlackElo "1923"]
[PlyCount "79"]
[EventDate "2025.02.23"]
[EventType "swiss"]
[EventCountry "MNE"]
[SourceTitle "playchess.com"]
[Source "ChessBase"]
[SourceQuality "1"]
[TimeControl "40/5400+30:1800+30"]

1. d4 {[%emt 0:00:03]} d5 {[%emt 0:00:07]} 2. c4 {[%emt 0:00:06]} e6 {[%emt 0:00:06]} 3. Nc3 {[%emt 0:00:05]} Be7 {[%emt 0:00:53]} 4. Nf3 {[%emt 0:01:04]} c6 {[%emt 0:00:31]} 5. e4 {[%emt 0:05:20]} Nf6 {[%emt 0:10:02]} 6. e5 {[%emt 0:11:32]} Ne4 {[%emt 0:10:12]} 7. Bd3 {[%emt 0:07:25]} Nxc3 {[%emt 0:06:21]} 8. bxc3 {[%emt 0:00:07]} b6 {[%emt 0:01:35]} 9. cxd5 {[%emt 0:00:50]} cxd5 {[%emt 0:01:33]} 10. h4 {[%emt 0:03:29]} h6 {[%emt 0:07:35]} 11. h5 {[%emt 0:01:05]} Nc6 {[%emt 0:08:08]} 12. Rh3 {[%emt 0:07:49]} Bb7 {[%emt 0:18:44]} 13. Rg3 {[%emt 0:01:38]} Bf8 {[%emt 0:03:34]} 14. a4 {[%emt 0:01:41]} Rc8 {[%emt 0:07:20]} 15. Ba3 {[%emt 0:02:46]} Na5 {[%emt 0:03:05]} 16. Ng1 {[%emt 0:12:11]} Bxa3 {[%emt 0:04:45]} 17. Rxa3 {[%emt 0:00:05]} Qe7 {[%emt 0:00:28]} 18. Ra2 {[%emt 0:01:11]} Kf8 {[%emt 0:04:25]} 19. Ne2 {[%emt 0:07:28]} Qh4 {[%emt 0:01:37]} 20. Rh3 {[%emt 0:00:10]} Qg5 {[%emt 0:01:30]} 21. Kf1 {[%emt 0:00:24]} f5 {[%emt 0:03:52]} 22. exf6 {[%emt 0:01:56]} gxf6 {[%emt 0:00:01]} 23. Kg1 {[%emt 0:04:24]} Ke7 {[%emt 0:02:17]} 24. Rg3 {[%emt 0:01:55]} Qxh5 {[%emt 0:01:19]} 25. Qc1 {[%emt 0:01:29]} Rhg8 {[%emt 0:02:05]} 26. Nf4 {[%emt 0:01:15]} Qf7 {[%emt 0:00:49]} 27. Bg6 {[%emt 0:04:13]} Rxg6 {[%emt 0:00:29]} 28. Nxg6+ {[%emt 0:00:13]} Kd7 {[%emt 0:00:34]} 29. Qxh6 {[%emt 0:01:21]} Kc6 {[%emt 0:00:15]} 30. Nf4 {[%emt 0:00:43]} Ba6 {[%emt 0:00:45]} 31. Rg7 {[%emt 0:00:31]} Qf8 {[%emt 0:00:27]} 32. Nxe6 {[%emt 0:04:33]} Qd6 {[%emt 0:00:27]} 33. Qxf6 {[%emt 0:00:19]} Bc4 {[%emt 0:00:17]} 34. Ra1 {[%emt 0:00:39]} a6 {[%emt 0:00:42]} 35. Re1 {[%emt 0:00:10]} Nb7 {[%emt 0:00:31]} 36. Rxb7 {[%emt 0:01:29]} Kxb7 {[%emt 0:00:35]} 37. Nc5+ {[%emt 0:00:12]} Kc6 {[%emt 0:00:33]} 38. Re6 {[%emt 0:00:08]} Rd8 {[%emt 0:00:05]} 39. Qxd8 {[%emt 0:00:16]} Qxe6 {[%emt 0:00:09]} 40. Nxe6 {[%emt 0:00:09]} 1-0

[Event "FIDE World Junior U20-ch Girls 2025"]
[Site "Petrovac"]
[Date "2025.02.25"]
[Round "1.32"]
[White "Mickunaite, Agne"]
[Black "Pipiras, Filipa Fortuna"]
[Result "1/2-1/2"]
[Annotator "ChessBase"]
[ECO "A29"]
[WhiteElo "1918"]
[BlackElo "2200"]
[PlyCount "61"]
[EventDate "2025.02.23"]
[EventType "swiss"]
[EventCountry "MNE"]
[SourceTitle "playchess.com"]
[Source "ChessBase"]
[SourceQuality "1"]
[TimeControl "40/5400+30:1800+30"]

1. c4 {[%emt 0:00:03]} e5 {[%emt 0:00:16]} 2. Nc3 {[%emt 0:00:10]} Nf6 {[%emt 0:00:28]} 3. Nf3 {[%emt 0:00:27]} Nc6 {[%emt 0:00:27]} 4. g3 {[%emt 0:00:53]} Bb4 {[%emt 0:02:27]} 5. Bg2 {[%emt 0:05:35]} O-O {[%emt 0:02:19]} 6. O-O {[%emt 0:03:37]} e4 {[%emt 0:06:44]} 7. Ng5 {[%emt 0:04:48]} Bxc3 {[%emt 0:01:43]} 8. bxc3 {[%emt 0:05:02]} Re8 {[%emt 0:25:42]} 9. d3 {[%emt 0:07:35]} exd3 {[%emt 0:02:18]} 10. exd3 {[%emt 0:00:22]} d6 {[%emt 0:02:18]} 11. Rb1 {[%emt 0:08:52]} Bg4 {[%emt 0:07:08]} 12. f3 {[%emt 0:03:47]} Bf5 {[%emt 0:06:22]} 13. Rxb7 {[%emt 0:13:21]} d5 {[%emt 0:02:08]} 14. cxd5 {[%emt 0:09:13]} Nxd5 {[%emt 0:08:50]} 15. Ne4 {[%emt 0:05:09]} Nb6 {[%emt 0:06:59]} 16. f4 {[%emt 0:10:28]} Bc8 {[%emt 0:07:03]} 17. Rxb6 {[%emt 0:02:18]} axb6 {[%emt 0:01:53]} 18. Ng5 {[%emt 0:00:18]} Qd7 {[%emt 0:09:47]} 19. Qh5 {[%emt 0:04:10]} h6 {[%emt 0:00:35]} 20. Nxf7 {[%emt 0:03:31]} Qxf7 {[%emt 0:01:16]} 21. Qxf7+ {[%emt 0:00:09]} Kxf7 {[%emt 0:00:05]} 22. Bxc6 {[%emt 0:00:03]} Rxa2 {[%emt 0:00:10]} 23. Bd5+ {[%emt 0:01:00]} Be6 {[%emt 0:00:06]} 24. Bxa2 {[%emt 0:00:05]} Bxa2 {[%emt 0:00:05]} 25. Kf2 {[%emt 0:00:14]} Be6 {[%emt 0:00:33]} 26. Re1 {[%emt 0:00:36]} Ra8 {[%emt 0:00:37]} 27. Ke3 {[%emt 0:02:07]} c5 {[%emt 0:01:55]} 28. c4 {[%emt 0:02:31]} Bd7 {[%emt 0:01:03]} 29. Bb2 {[%emt 0:01:36]} Re8+ {[%emt 0:01:31]} 30. Be5 {[%emt 0:00:10]} g5 {[%emt 0:00:52]} 31. Rb1 {[%emt 0:01:57]} 1/2-1/2

[Event "FIDE World Junior U20-ch Girls 2025"]
[Site "Petrovac"]
[Date "2025.02.25"]
[Round "1.33"]
[White "Karimova, Guldona"]
[Black "Popovic, Mateja"]
[Result "1-0"]
[Annotator "ChessBase"]
[ECO "B76"]
[WhiteElo "2200"]
[BlackElo "1917"]
[PlyCount "59"]
[EventDate "2025.02.23"]
[EventType "swiss"]
[EventCountry "MNE"]
[SourceTitle "playchess.com"]
[Source "ChessBase"]
[SourceQuality "1"]
[TimeControl "40/5400+30:1800+30"]

1. e4 {[%emt 0:00:04]} c5 {[%emt 0:00:10]} 2. Nf3 {[%emt 0:00:06]} d6 {[%emt 0:00:33]} 3. d4 {[%emt 0:00:06]} cxd4 {[%emt 0:00:07]} 4. Nxd4 {[%emt 0:00:02]} Nf6 {[%emt 0:00:20]} 5. Nc3 {[%emt 0:00:05]} g6 {[%emt 0:00:09]} 6. Be3 {[%emt 0:00:08]} Bg7 {[%emt 0:00:55]} 7. f3 {[%emt 0:00:15]} O-O {[%emt 0:02:00]} 8. Qd2 {[%emt 0:00:12]} Nc6 {[%emt 0:02:01]} 9. O-O-O {[%emt 0:00:51]} a6 {[%emt 0:04:04]} 10. g4 {[%emt 0:08:43]} Nxd4 {[%emt 0:05:28]} 11. Bxd4 {[%emt 0:00:06]} b5 {[%emt 0:01:32]} 12. h4 {[%emt 0:03:36]} b4 {[%emt 0:09:15]} 13. Nd5 {[%emt 0:00:59]} Nxd5 {[%emt 0:06:02]} 14. exd5 {[%emt 0:01:13]} Qa5 {[%emt 0:03:37]} 15. Bxg7 {[%emt 0:05:52]} Kxg7 {[%emt 0:01:42]} 16. Kb1 {[%emt 0:10:22]} Bb7 {[%emt 0:12:54]} 17. h5 {[%emt 0:02:40]} e5 {[%emt 0:03:27]} 18. a3 {[%emt 0:08:37]} Rac8 {[%emt 0:04:48]} 19. axb4 {[%emt 0:09:34]} Qa4 {[%emt 0:01:56]} 20. Rh2 {[%emt 0:00:23]} a5 {[%emt 0:01:56]} 21. b5 {[%emt 0:02:00]} Qb4 {[%emt 0:03:39]} 22. c4 {[%emt 0:06:21]} Qxd2 {[%emt 0:02:26]} 23. Rdxd2 {[%emt 0:00:12]} f5 {[%emt 0:00:16]} 24. hxg6 {[%emt 0:02:36]} hxg6 {[%emt 0:04:04]} 25. gxf5 {[%emt 0:00:05]} Rxf5 {[%emt 0:00:10]} 26. Bh3 {[%emt 0:01:23]} Rxf3 {[%emt 0:02:03]} 27. Bxc8 {[%emt 0:00:01]} Bxc8 {[%emt 0:00:07]} 28. Rdf2 {[%emt 0:01:03]} Bf5+ {[%emt 0:00:53]} 29. Ka2 {[%emt 0:00:35]} Rd3 {[%emt 0:01:23]} 30. b3 {[%emt 0:05:30]} 1-0

[Event "FIDE World Junior U20-ch Girls 2025"]
[Site "Petrovac"]
[Date "2025.02.25"]
[Round "1.35"]
[White "Karacsonyi, Kata"]
[Black "Avetisyan, Ani"]
[Result "1/2-1/2"]
[Annotator "ChessBase"]
[ECO "B44"]
[WhiteElo "2191"]
[BlackElo "1904"]
[PlyCount "84"]
[EventDate "2025.02.23"]
[EventType "swiss"]
[EventCountry "MNE"]
[SourceTitle "playchess.com"]
[Source "ChessBase"]
[SourceQuality "1"]
[TimeControl "40/5400+30:1800+30"]

1. e4 {[%emt 0:00:03]} c5 {[%emt 0:00:06]} 2. Nf3 {[%emt 0:00:07]} e6 {[%emt 0:00:11]} 3. d4 {[%emt 0:00:08]} cxd4 {[%emt 0:00:06]} 4. Nxd4 {[%emt 0:00:05]} Nc6 {[%emt 0:00:03]} 5. Bf4 {[%emt 0:00:16]} d6 {[%emt 0:02:11]} 6. Nxc6 {[%emt 0:00:10]} bxc6 {[%emt 0:00:08]} 7. Bd3 {[%emt 0:00:09]} e5 {[%emt 0:03:11]} 8. Be3 {[%emt 0:00:53]} Nf6 {[%emt 0:00:48]} 9. c4 {[%emt 0:08:27]} Be7 {[%emt 0:01:45]} 10. O-O {[%emt 0:01:37]} O-O {[%emt 0:01:33]} 11. Nc3 {[%emt 0:00:12]} Be6 {[%emt 0:03:58]} 12. Qf3 {[%emt 0:06:17]} Ng4 {[%emt 0:11:17]} 13. Bc1 {[%emt 0:12:05]} Bg5 {[%emt 0:02:52]} 14. h3 {[%emt 0:09:20]} Bxc1 {[%emt 0:08:11]} 15. Raxc1 {[%emt 0:00:32]} Nf6 {[%emt 0:00:18]} 16. Rfd1 {[%emt 0:02:56]} Qe7 {[%emt 0:03:06]} 17. b4 {[%emt 0:04:20]} Rab8 {[%emt 0:06:39]} 18. Rb1 {[%emt 0:07:15]} Nd7 {[%emt 0:03:18]} 19. a4 {[%emt 0:07:31]} a5 {[%emt 0:11:01]} 20. b5 {[%emt 0:09:16]} cxb5 {[%emt 0:00:42]} 21. Rxb5 {[%emt 0:14:34]} Rxb5 {[%emt 0:04:15]} 22. axb5 {[%emt 0:01:21]} Nb6 {[%emt 0:03:56]} 23. Ra1 {[%emt 0:01:59]} a4 {[%emt 0:08:57]} 24. Qd1 {[%emt 0:02:57]} Ra8 {[%emt 0:02:33]} 25. Nxa4 {[%emt 0:05:54]} Qa7 {[%emt 0:01:14]} 26. Bc2 {[%emt 0:00:07]} Nxc4 {[%emt 0:05:27]} 27. b6 {[%emt 0:02:07]} Nxb6 {[%emt 0:02:53]} 28. Nxb6 {[%emt 0:00:35]} Qxa1 {[%emt 0:00:04]} 29. Nxa8 {[%emt 0:00:06]} Qxa8 {[%emt 0:00:09]} 30. Qxd6 {[%emt 0:00:09]} Qa1+ {[%emt 0:03:23]} 31. Kh2 {[%emt 0:00:05]} g6 {[%emt 0:02:45]} 32. f4 {[%emt 0:02:30]} exf4 {[%emt 0:00:45]} 33. Qxf4 {[%emt 0:00:11]} Qd4 {[%emt 0:00:31]} 34. Qf3 {[%emt 0:00:38]} Bc4 {[%emt 0:01:58]} 35. Qd1 {[%emt 0:01:19]} Qf2 {[%emt 0:01:11]} 36. Bb1 {[%emt 0:01:11]} h5 {[%emt 0:04:33]} 37. Qf3 {[%emt 0:00:56]} Qb2 {[%emt 0:01:32]} 38. Bd3 {[%emt 0:00:35]} Bb3 {[%emt 0:00:39]} 39. Qg3 {[%emt 0:00:25]} Bc2 {[%emt 0:00:57]} 40. Bxc2 {[%emt 0:00:30]} Qxc2 {[%emt 0:00:02]} 41. Qb8+ {[%emt 0:30:16]} Kh7 {[%emt 0:30:48]} 42. Qf4 {[%emt 0:00:00]} Qc4 {[%emt 0:00:00]} 1/2-1/2

[Event "FIDE World Junior U20-ch Girls 2025"]
[Site "Petrovac"]
[Date "2025.02.25"]
[Round "1.36"]
[White "Xu, Luna Yuexiu"]
[Black "Abdinova, Narmin"]
[Result "0-1"]
[Annotator "ChessBase"]
[ECO "C47"]
[WhiteElo "1903"]
[BlackElo "2186"]
[PlyCount "74"]
[EventDate "2025.02.23"]
[EventType "swiss"]
[EventCountry "MNE"]
[SourceTitle "playchess.com"]
[Source "ChessBase"]
[SourceQuality "1"]
[TimeControl "40/5400+30:1800+30"]

1. e4 {[%emt 0:00:05]} e5 {[%emt 0:00:29]} 2. Nf3 {[%emt 0:00:57]} Nc6 {[%emt 0:00:11]} 3. Nc3 {[%emt 0:00:27]} Nf6 {[%emt 0:00:07]} 4. d4 {[%emt 0:00:17]} exd4 {[%emt 0:00:11]} 5. Nxd4 {[%emt 0:00:25]} Bb4 {[%emt 0:00:50]} 6. Nxc6 {[%emt 0:00:46]} bxc6 {[%emt 0:00:06]} 7. Bd3 {[%emt 0:00:55]} d5 {[%emt 0:00:25]} 8. exd5 {[%emt 0:01:07]} cxd5 {[%emt 0:00:10]} 9. O-O {[%emt 0:00:51]} O-O {[%emt 0:00:04]} 10. Bg5 {[%emt 0:00:26]} c6 {[%emt 0:00:12]} 11. Qf3 {[%emt 0:00:13]} Be7 {[%emt 0:00:45]} 12. Rae1 {[%emt 0:03:30]} Rb8 {[%emt 0:01:27]} 13. Nd1 {[%emt 0:02:02]} Be6 {[%emt 0:06:23]} 14. c3 {[%emt 0:12:36]} h6 {[%emt 0:02:52]} 15. Bf4 {[%emt 0:01:53]} Bd6 {[%emt 0:00:26]} 16. h3 {[%emt 0:02:15]} c5 {[%emt 0:08:07]} 17. Be5 {[%emt 0:16:44]} Re8 {[%emt 0:11:25]} 18. Qg3 {[%emt 0:00:00]} Bxe5 {[%emt 0:03:11]} 19. Rxe5 {[%emt 0:00:00]} Nd7 {[%emt 0:00:47]} 20. Re2 {[%emt 0:00:00]} c4 {[%emt 0:12:14]} 21. Bb1 {[%emt 0:00:00]} Nc5 {[%emt 0:00:06]} 22. Rfe1 {[%emt 0:04:09]} d4 {[%emt 0:06:20]} 23. cxd4 {[%emt 0:04:39]} Qxd4 {[%emt 0:00:31]} 24. Qe3 {[%emt 0:02:11]} Qd6 {[%emt 0:03:57]} 25. Rd2 {[%emt 0:04:18]} Qc6 {[%emt 0:07:53]} 26. Qc3 {[%emt 0:04:18]} Red8 {[%emt 0:05:33]} 27. Rxd8+ {[%emt 0:02:53]} Rxd8 {[%emt 0:00:02]} 28. Ne3 {[%emt 0:01:32]} Qb5 {[%emt 0:01:44]} 29. Qc2 {[%emt 0:04:53]} Nd3 {[%emt 0:05:28]} 30. Rd1 {[%emt 0:00:52]} Rd6 {[%emt 0:02:01]} 31. Qc3 {[%emt 0:04:49]} g6 {[%emt 0:03:11]} 32. b3 {[%emt 0:01:23]} Nf4 {[%emt 0:00:27]} 33. Kh2 {[%emt 0:05:13]} Rxd1 {[%emt 0:00:36]} 34. Nxd1 {[%emt 0:00:13]} cxb3 {[%emt 0:00:43]} 35. axb3 {[%emt 0:01:02]} Qf1 {[%emt 0:01:18]} 36. Qf3 {[%emt 0:02:55]} Ne2 {[%emt 0:02:53]} 37. Qa8+ {[%emt 0:04:00]} Kg7 {[%emt 0:00:14]} 0-1

[Event "FIDE World Junior U20-ch Girls 2025"]
[Site "Petrovac"]
[Date "2025.02.25"]
[Round "1.37"]
[White "Kanyamarala, Trisha"]
[Black "Morales Perez, Ghisell"]
[Result "1-0"]
[Annotator "ChessBase"]
[ECO "A57"]
[WhiteElo "2178"]
[BlackElo "1902"]
[PlyCount "61"]
[EventDate "2025.02.23"]
[EventType "swiss"]
[EventCountry "MNE"]
[SourceTitle "playchess.com"]
[Source "ChessBase"]
[SourceQuality "1"]
[TimeControl "40/5400+30:1800+30"]

1. d4 {[%emt 0:00:06]} Nf6 {[%emt 0:00:14]} 2. c4 {[%emt 0:00:17]} c5 {[%emt 0:00:17]} 3. d5 {[%emt 0:00:31]} b5 {[%emt 0:00:20]} 4. cxb5 {[%emt 0:00:18]} a6 {[%emt 0:00:23]} 5. b6 {[%emt 0:00:55]} e6 {[%emt 0:02:47]} 6. Nc3 {[%emt 0:04:21]} exd5 {[%emt 0:01:31]} 7. Nxd5 {[%emt 0:09:53]} Nxd5 {[%emt 0:02:13]} 8. Qxd5 {[%emt 0:00:07]} Nc6 {[%emt 0:00:37]} 9. Nf3 {[%emt 0:05:08]} Rb8 {[%emt 0:08:18]} 10. Ne5 {[%emt 0:06:32]} Qf6 {[%emt 0:03:57]} 11. Nxc6 {[%emt 0:16:26]} dxc6 {[%emt 0:00:19]} 12. Qe4+ {[%emt 0:02:21]} Be7 {[%emt 0:09:31]} 13. e3 {[%emt 0:16:14]} Rxb6 {[%emt 0:10:17]} 14. Be2 {[%emt 0:06:16]} Be6 {[%emt 0:04:17]} 15. O-O {[%emt 0:03:07]} O-O {[%emt 0:06:45]} 16. Qc2 {[%emt 0:02:11]} Rd8 {[%emt 0:20:00]} 17. e4 {[%emt 0:02:50]} Rb4 {[%emt 0:10:23]} 18. Bxa6 {[%emt 0:15:58]} Ra8 {[%emt 0:03:00]} 19. Bd3 {[%emt 0:00:54]} Rxa2 {[%emt 0:02:22]} 20. Rxa2 {[%emt 0:01:16]} Bxa2 {[%emt 0:00:08]} 21. Qe2 {[%emt 0:01:45]} Bd6 {[%emt 0:05:29]} 22. f4 {[%emt 0:01:09]} Qd4+ {[%emt 0:00:58]} 23. Kh1 {[%emt 0:00:18]} c4 {[%emt 0:01:05]} 24. Bc2 {[%emt 0:00:17]} Bc5 {[%emt 0:02:25]} 25. Rd1 {[%emt 0:00:54]} Qf6 {[%emt 0:00:27]} 26. Qh5 {[%emt 0:01:28]} Qe7 {[%emt 0:02:07]} 27. Qf5 {[%emt 0:01:22]} g6 {[%emt 0:01:35]} 28. Qc8+ {[%emt 0:00:14]} Kg7 {[%emt 0:00:05]} 29. Bd2 {[%emt 0:00:35]} Rb7 {[%emt 0:00:47]} 30. Bc3+ {[%emt 0:00:11]} f6 {[%emt 0:00:45]} 31. e5 {[%emt 0:00:39]} 1-0

[Event "FIDE World Junior U20-ch Girls 2025"]
[Site "Petrovac"]
[Date "2025.02.25"]
[Round "1.38"]
[White "Guo, Hanxi"]
[Black "Bochnickova, Simona"]
[Result "1-0"]
[Annotator "ChessBase"]
[ECO "B92"]
[WhiteElo "1854"]
[BlackElo "2171"]
[PlyCount "107"]
[EventDate "2025.02.23"]
[EventType "swiss"]
[EventCountry "MNE"]
[SourceTitle "playchess.com"]
[Source "ChessBase"]
[SourceQuality "1"]
[TimeControl "40/5400+30:1800+30"]

1. e4 {[%emt 0:00:04]} c5 {[%emt 0:00:04]} 2. Nf3 {[%emt 0:00:03]} d6 {[%emt 0:00:06]} 3. d4 {[%emt 0:00:04]} cxd4 {[%emt 0:00:04]} 4. Nxd4 {[%emt 0:00:03]} Nf6 {[%emt 0:00:07]} 5. Nc3 {[%emt 0:00:07]} a6 {[%emt 0:00:05]} 6. Be2 {[%emt 0:00:11]} e5 {[%emt 0:00:06]} 7. Nb3 {[%emt 0:00:07]} Be7 {[%emt 0:00:35]} 8. Be3 {[%emt 0:00:12]} Be6 {[%emt 0:01:03]} 9. Nd5 {[%emt 0:00:31]} Nxd5 {[%emt 0:04:29]} 10. exd5 {[%emt 0:00:07]} Bf5 {[%emt 0:00:04]} 11. c4 {[%emt 0:02:18]} Nd7 {[%emt 0:00:22]} 12. O-O {[%emt 0:00:38]} O-O {[%emt 0:00:22]} 13. f4 {[%emt 0:07:02]} exf4 {[%emt 0:05:04]} 14. Bxf4 {[%emt 0:00:35]} Bg6 {[%emt 0:00:11]} 15. Qd2 {[%emt 0:01:22]} Re8 {[%emt 0:06:25]} 16. Kh1 {[%emt 0:06:14]} Rc8 {[%emt 0:07:13]} 17. Rac1 {[%emt 0:02:06]} Ne5 {[%emt 0:07:34]} 18. c5 {[%emt 0:13:35]} Bf6 {[%emt 0:03:05]} 19. c6 {[%emt 0:11:18]} bxc6 {[%emt 0:06:57]} 20. dxc6 {[%emt 0:00:51]} Rxc6 {[%emt 0:14:51]} 21. Rxc6 {[%emt 0:00:45]} Nxc6 {[%emt 0:00:04]} 22. Bxa6 {[%emt 0:01:02]} Qa8 {[%emt 0:02:41]} 23. Bc4 {[%emt 0:05:56]} Qa4 {[%emt 0:10:37]} 24. Qd5 {[%emt 0:15:39]} Re4 {[%emt 0:15:14]} 25. Nd2 {[%emt 0:04:49]} Rd4 {[%emt 0:02:31]} 26. Qb5 {[%emt 0:05:32]} Qxb5 {[%emt 0:00:06]} 27. Bxb5 {[%emt 0:00:04]} Ne5 {[%emt 0:03:23]} 28. a4 {[%emt 0:04:33]} Nd3 {[%emt 0:02:42]} 29. Be3 {[%emt 0:02:14]} Rb4 {[%emt 0:00:06]} 30. b3 {[%emt 0:00:28]} d5 {[%emt 0:02:42]} 31. Bc6 {[%emt 0:03:44]} d4 {[%emt 0:01:05]} 32. Bg1 {[%emt 0:00:31]} Nc5 {[%emt 0:01:46]} 33. a5 {[%emt 0:09:54]} Bd3 {[%emt 0:02:04]} 34. Re1 {[%emt 0:01:00]} g6 {[%emt 0:01:02]} 35. Bd5 {[%emt 0:01:43]} Kg7 {[%emt 0:01:07]} 36. Rc1 {[%emt 0:01:12]} Be7 {[%emt 0:01:52]} 37. Bc4 {[%emt 0:01:23]} Bf6 {[%emt 0:00:38]} 38. Bxd3 {[%emt 0:00:54]} Nxd3 {[%emt 0:00:02]} 39. Rc4 {[%emt 0:00:12]} Rxc4 {[%emt 0:00:57]} 40. bxc4 {[%emt 0:00:42]} Nb4 {[%emt 0:00:31]} 41. Nb3 {[%emt 0:30:42]} Nc6 {[%emt 0:09:33]} 42. a6 {[%emt 0:00:00]} d3 {[%emt 0:03:36]} 43. a7 {[%emt 0:00:00]} Nxa7 {[%emt 0:00:04]} 44. Bxa7 {[%emt 0:00:00]} Bg5 {[%emt 0:04:12]} 45. Bd4+ {[%emt 0:00:00]} Kf8 {[%emt 0:00:03]} 46. Bc3 {[%emt 0:00:00]} Be3 {[%emt 0:01:39]} 47. Bd2 {[%emt 0:00:00]} Ba7 {[%emt 0:00:47]} 48. Nc1 {[%emt 0:00:00]} Ke7 {[%emt 0:00:03]} 49. Nxd3 {[%emt 0:00:00]} Ke6 {[%emt 0:00:24]} 50. g4 {[%emt 0:00:00]} h5 {[%emt 0:03:37]} 51. gxh5 {[%emt 0:00:00]} gxh5 {[%emt 0:00:05]} 52. Kg2 {[%emt 0:00:00]} Bd4 {[%emt 0:03:08]} 53. Kf3 {[%emt 0:00:00]} Ba7 {[%emt 0:01:56]} 54. h3 {[%emt 0:00:00]} 1-0

[Event "FIDE World Junior U20-ch Girls 2025"]
[Site "Petrovac"]
[Date "2025.02.25"]
[Round "1.39"]
[White "Smietanska, Wiktoria"]
[Black "Djendjinovic, Ines"]
[Result "1-0"]
[Annotator "ChessBase"]
[ECO "B90"]
[WhiteElo "2170"]
[BlackElo "1841"]
[PlyCount "51"]
[EventDate "2025.02.23"]
[EventType "swiss"]
[EventCountry "MNE"]
[SourceTitle "playchess.com"]
[Source "ChessBase"]
[SourceQuality "1"]
[TimeControl "40/5400+30:1800+30"]

1. e4 {[%emt 0:00:03]} c5 {[%emt 0:00:04]} 2. Nf3 {[%emt 0:00:09]} d6 {[%emt 0:00:05]} 3. d4 {[%emt 0:00:08]} cxd4 {[%emt 0:00:05]} 4. Nxd4 {[%emt 0:00:07]} Nf6 {[%emt 0:00:04]} 5. Nc3 {[%emt 0:00:11]} a6 {[%emt 0:00:05]} 6. h3 {[%emt 0:00:07]} e6 {[%emt 0:00:46]} 7. g4 {[%emt 0:00:42]} Be7 {[%emt 0:00:54]} 8. Bg2 {[%emt 0:01:58]} Qc7 {[%emt 0:01:01]} 9. Be3 {[%emt 0:08:06]} h6 {[%emt 0:01:17]} 10. Qe2 {[%emt 0:03:49]} Nc6 {[%emt 0:07:35]} 11. O-O-O {[%emt 0:04:27]} Bd7 {[%emt 0:02:59]} 12. f4 {[%emt 0:02:21]} b5 {[%emt 0:21:08]} 13. e5 {[%emt 0:08:38]} dxe5 {[%emt 0:02:16]} 14. fxe5 {[%emt 0:03:08]} Nh7 {[%emt 0:00:31]} 15. h4 {[%emt 0:09:26]} Nxd4 {[%emt 0:07:42]} 16. Bxd4 {[%emt 0:04:07]} Bc6 {[%emt 0:00:30]} 17. Bxc6+ {[%emt 0:05:43]} Qxc6 {[%emt 0:00:06]} 18. Ne4 {[%emt 0:00:15]} Rc8 {[%emt 0:12:08]} 19. g5 {[%emt 0:04:07]} Qc4 {[%emt 0:08:25]} 20. Qxc4 {[%emt 0:01:05]} Rxc4 {[%emt 0:00:46]} 21. gxh6 {[%emt 0:02:58]} gxh6 {[%emt 0:00:16]} 22. Rhg1 {[%emt 0:02:16]} Rc6 {[%emt 0:10:58]} 23. Nd6+ {[%emt 0:05:42]} Kf8 {[%emt 0:10:07]} 24. Be3 {[%emt 0:03:15]} Bxd6 {[%emt 0:02:10]} 25. exd6 {[%emt 0:00:45]} Nf6 {[%emt 0:05:34]} 26. Bd4 {[%emt 0:00:46]} 1-0

[Event "FIDE World Junior U20-ch Girls 2025"]
[Site "Petrovac"]
[Date "2025.02.25"]
[Round "1.40"]
[White "Blauhut, Anna"]
[Black "Wang, Qinxuanyi"]
[Result "0-1"]
[Annotator "RC"]
[ECO "C00"]
[WhiteElo "1837"]
[BlackElo "2165"]
[PlyCount "46"]
[EventDate "2025.02.23"]
[EventType "swiss"]
[EventCountry "MNE"]
[SourceTitle "playchess.com"]
[Source "ChessBase"]
[SourceQuality "1"]
[TimeControl "40/5400+30:1800+30"]

1. e4 {[%emt 0:00:04]} e6 {[%emt 0:00:05]} 2. b3 {[%emt 0:00:14]} d5 {[%emt 0:00:03]} 3. Bb2 {[%emt 0:00:16]} Nc6 {[%emt 0:00:06]} 4. Qe2 {[%emt 0:03:43]} dxe4 {[%emt 0:03:22]} 5. Nc3 {[%emt 0:00:29]} Nd4 {[%emt 0:01:22]} 6. Qd1 {[%emt 0:00:49]} f5 {[%emt 0:02:53]} 7. f3 {[%emt 0:02:37]} exf3 {[%emt 0:04:17]} 8. Nxf3 {[%emt 0:00:33]} Nf6 {[%emt 0:00:47]} 9. Nxd4 {[%emt 0:04:33]} Qxd4 {[%emt 0:00:41]} 10. Qe2 {[%emt 0:00:59]} Qg4 {[%emt 0:04:48]} 11. Qb5+ {[%emt 0:08:45]} c6 {[%emt 0:00:21]} 12. Qe5 {[%emt 0:00:13]} Bd7 {[%emt 0:06:29]} 13. h3 {[%emt 0:04:27]} Qh4+ {[%emt 0:02:29]} 14. g3 {[%emt 0:00:13]} Qb4 {[%emt 0:00:45]} 15. Bc4 {[%emt 0:06:42]} Bd6 {[%emt 0:01:27]} 16. Qe3 {[%emt 0:00:23]} Qb6 {[%emt 0:00:31]} 17. Qxb6 {[%emt 0:01:13]} axb6 {[%emt 0:00:05]} 18. O-O-O {[%emt 0:02:41]} b5 {[%emt 0:00:35]} 19. Bd3 {[%emt 0:01:27]} Kf7 {[%emt 0:03:45]} 20. g4 {[%emt 0:03:53]} Rhf8 {[%emt 0:02:08]} 21. Rhf1 {[%emt 0:02:55]} g6 {[%emt 0:03:06]} 22. g5 {[%emt 0:09:30]} Nd5 {[%emt 0:00:32]} 23. Ne4 {[%emt 0:14:19]} Be7 {[%emt 0:00:05]} 0-1

[Event "FIDE World Junior U20-ch Girls 2025"]
[Site "Petrovac"]
[Date "2025.02.25"]
[Round "1.41"]
[White "Yildiz, Elif Zeren"]
[Black "Djukic, Katarina"]
[Result "1-0"]
[Annotator "RC"]
[ECO "B76"]
[WhiteElo "2160"]
[BlackElo "1786"]
[PlyCount "45"]
[EventDate "2025.02.23"]
[EventType "swiss"]
[EventCountry "MNE"]
[SourceTitle "playchess.com"]
[Source "ChessBase"]
[SourceQuality "1"]
[TimeControl "40/5400+30:1800+30"]

1. e4 {[%emt 0:00:03]} c5 {[%emt 0:00:05]} 2. Nf3 {[%emt 0:00:09]} d6 {[%emt 0:00:05]} 3. d4 {[%emt 0:00:09]} cxd4 {[%emt 0:00:05]} 4. Nxd4 {[%emt 0:00:04]} Nf6 {[%emt 0:00:06]} 5. Nc3 {[%emt 0:00:07]} g6 {[%emt 0:00:05]} 6. f3 {[%emt 0:00:24]} Bg7 {[%emt 0:00:07]} 7. Be3 {[%emt 0:00:06]} O-O {[%emt 0:00:07]} 8. Qd2 {[%emt 0:00:06]} Nc6 {[%emt 0:00:08]} 9. O-O-O {[%emt 0:00:06]} d5 {[%emt 0:00:07]} 10. Nxc6 {[%emt 0:00:32]} bxc6 {[%emt 0:00:07]} 11. Bh6 {[%emt 0:00:03]} Bxh6 {[%emt 0:00:46]} 12. Qxh6 {[%emt 0:00:02]} e5 {[%emt 0:00:20]} 13. exd5 {[%emt 0:00:22]} cxd5 {[%emt 0:00:16]} 14. h4 {[%emt 0:00:07]} d4 {[%emt 0:01:01]} 15. h5 {[%emt 0:00:27]} Be6 {[%emt 0:04:25]} 16. hxg6 {[%emt 0:00:10]} fxg6 {[%emt 0:00:08]} 17. Ne4 {[%emt 0:00:13]} Qc7 {[%emt 0:02:14]} 18. Bd3 {[%emt 0:00:08]} Bf5 {[%emt 0:03:04]} 19. Qh4 {[%emt 0:00:18]} Bxe4 {[%emt 0:26:39]} 20. Bxe4 {[%emt 0:00:07]} Nxe4 {[%emt 0:00:27]} 21. Qxe4 {[%emt 0:00:02]} Qc4 {[%emt 0:12:21]} 22. Rh6 {[%emt 0:09:13]} Rac8 {[%emt 0:13:37]} 23. Rxg6+ {[%emt 0:01:32]} 1-0